{"text_format":"3","workbook":"xlsx","n_sheets":2,"sheets":["ΔΕΔΟΜΕΝΑ ΑΝΆΠΤΥΞΗΣ","ΓΡΑΦΗΜΑ ΑΝΑΠΤΥΞΗΣ"],"not_rendered":{"charts":1,"defined_names":3},"read":"whole","date_system":"1900"}

{"sheet":"ΔΕΔΟΜΕΝΑ ΑΝΆΠΤΥΞΗΣ","index":0,"n_rows":23,"n_cols":8,"rows_kept":23,"merged":[[0,1,0,7],[1,2,1,7]]}
[null,"Ανάπτυξη μωρού "]
[null,"Όνομα μωρού:","Όνομα"]
[null,"Ηλικία","Λίβρες","Ουγγιές","Βάρος (λίβρες)","Βάρος\nΕκατοστημόριο","Ύψος (ίντσες)","Ύψος\nΕκατοστημόριο"]
[null,"Κατά τη γέννηση",7,null,{"$f":"IF(COUNT(Δεδομένα[[#This Row],[Λίβρες]:[Ουγγιές]])>0,Δεδομένα[[#This Row],[Λίβρες]]+(Δεδομένα[[#This Row],[Ουγγιές]]/16),NA())","v":7},40,19.5,70]
[null,"4 ημερών",6,8,{"$f":"IF(COUNT(Δεδομένα[[#This Row],[Λίβρες]:[Ουγγιές]])>0,Δεδομένα[[#This Row],[Λίβρες]]+(Δεδομένα[[#This Row],[Ουγγιές]]/16),NA())","v":6.5},41,19.5,70]
[null,"7 ημερών",6,4.8,{"$f":"IF(COUNT(Δεδομένα[[#This Row],[Λίβρες]:[Ουγγιές]])>0,Δεδομένα[[#This Row],[Λίβρες]]+(Δεδομένα[[#This Row],[Ουγγιές]]/16),NA())","v":6.3},42,20,71]
[null,"11 ημερών",6,9.6,{"$f":"IF(COUNT(Δεδομένα[[#This Row],[Λίβρες]:[Ουγγιές]])>0,Δεδομένα[[#This Row],[Λίβρες]]+(Δεδομένα[[#This Row],[Ουγγιές]]/16),NA())","v":6.6},43,20,71]
[null,"14 ημερών",7,null,{"$f":"IF(COUNT(Δεδομένα[[#This Row],[Λίβρες]:[Ουγγιές]])>0,Δεδομένα[[#This Row],[Λίβρες]]+(Δεδομένα[[#This Row],[Ουγγιές]]/16),NA())","v":7},44,20,71]
[null,"18 ημερών",7,12,{"$f":"IF(COUNT(Δεδομένα[[#This Row],[Λίβρες]:[Ουγγιές]])>0,Δεδομένα[[#This Row],[Λίβρες]]+(Δεδομένα[[#This Row],[Ουγγιές]]/16),NA())","v":7.75},45,21,72]
[null,"21 ημερών",8,8,{"$f":"IF(COUNT(Δεδομένα[[#This Row],[Λίβρες]:[Ουγγιές]])>0,Δεδομένα[[#This Row],[Λίβρες]]+(Δεδομένα[[#This Row],[Ουγγιές]]/16),NA())","v":8.5},46,21,72]
[null,"25 ημερών",null,null,{"$f":"IF(COUNT(Δεδομένα[[#This Row],[Λίβρες]:[Ουγγιές]])>0,Δεδομένα[[#This Row],[Λίβρες]]+(Δεδομένα[[#This Row],[Ουγγιές]]/16),NA())","v":{"$error":"#N/A"}}]
[null,"28 ημερών",null,null,{"$f":"IF(COUNT(Δεδομένα[[#This Row],[Λίβρες]:[Ουγγιές]])>0,Δεδομένα[[#This Row],[Λίβρες]]+(Δεδομένα[[#This Row],[Ουγγιές]]/16),NA())","v":{"$error":"#N/A"}}]
[null,"5 εβδομάδων",null,null,{"$f":"IF(COUNT(Δεδομένα[[#This Row],[Λίβρες]:[Ουγγιές]])>0,Δεδομένα[[#This Row],[Λίβρες]]+(Δεδομένα[[#This Row],[Ουγγιές]]/16),NA())","v":{"$error":"#N/A"}}]
[null,"6 εβδομάδων",null,null,{"$f":"IF(COUNT(Δεδομένα[[#This Row],[Λίβρες]:[Ουγγιές]])>0,Δεδομένα[[#This Row],[Λίβρες]]+(Δεδομένα[[#This Row],[Ουγγιές]]/16),NA())","v":{"$error":"#N/A"}}]
[null,"7 εβδομάδων",null,null,{"$f":"IF(COUNT(Δεδομένα[[#This Row],[Λίβρες]:[Ουγγιές]])>0,Δεδομένα[[#This Row],[Λίβρες]]+(Δεδομένα[[#This Row],[Ουγγιές]]/16),NA())","v":{"$error":"#N/A"}}]
[null,"2 μηνών",null,null,{"$f":"IF(COUNT(Δεδομένα[[#This Row],[Λίβρες]:[Ουγγιές]])>0,Δεδομένα[[#This Row],[Λίβρες]]+(Δεδομένα[[#This Row],[Ουγγιές]]/16),NA())","v":{"$error":"#N/A"}}]
[null,"3 μηνών",null,null,{"$f":"IF(COUNT(Δεδομένα[[#This Row],[Λίβρες]:[Ουγγιές]])>0,Δεδομένα[[#This Row],[Λίβρες]]+(Δεδομένα[[#This Row],[Ουγγιές]]/16),NA())","v":{"$error":"#N/A"}}]
[null,"6 μηνών",null,null,{"$f":"IF(COUNT(Δεδομένα[[#This Row],[Λίβρες]:[Ουγγιές]])>0,Δεδομένα[[#This Row],[Λίβρες]]+(Δεδομένα[[#This Row],[Ουγγιές]]/16),NA())","v":{"$error":"#N/A"}}]
[null,"9 μηνών",null,null,{"$f":"IF(COUNT(Δεδομένα[[#This Row],[Λίβρες]:[Ουγγιές]])>0,Δεδομένα[[#This Row],[Λίβρες]]+(Δεδομένα[[#This Row],[Ουγγιές]]/16),NA())","v":{"$error":"#N/A"}}]
[null,"12 μηνών",null,null,{"$f":"IF(COUNT(Δεδομένα[[#This Row],[Λίβρες]:[Ουγγιές]])>0,Δεδομένα[[#This Row],[Λίβρες]]+(Δεδομένα[[#This Row],[Ουγγιές]]/16),NA())","v":{"$error":"#N/A"}}]
[null,"18 μηνών",null,null,{"$f":"IF(COUNT(Δεδομένα[[#This Row],[Λίβρες]:[Ουγγιές]])>0,Δεδομένα[[#This Row],[Λίβρες]]+(Δεδομένα[[#This Row],[Ουγγιές]]/16),NA())","v":{"$error":"#N/A"}}]
[null,"24 μηνών",null,null,{"$f":"IF(COUNT(Δεδομένα[[#This Row],[Λίβρες]:[Ουγγιές]])>0,Δεδομένα[[#This Row],[Λίβρες]]+(Δεδομένα[[#This Row],[Ουγγιές]]/16),NA())","v":{"$error":"#N/A"}}]
[null,"36 μηνών",null,null,{"$f":"IF(COUNT(Δεδομένα[[#This Row],[Λίβρες]:[Ουγγιές]])>0,Δεδομένα[[#This Row],[Λίβρες]]+(Δεδομένα[[#This Row],[Ουγγιές]]/16),NA())","v":{"$error":"#N/A"}}]

{"sheet":"ΓΡΑΦΗΜΑ ΑΝΑΠΤΥΞΗΣ","index":1,"n_rows":1,"n_cols":2,"rows_kept":1,"merged":[[0,1,1,1]]}
[null,"ΓΡΆΦΗΜΑ ΑΝΆΠΤΥΞΗΣ ΜΩΡΟΥ"]